Cogmind - Beta 15 @@@ ROGUE MODE // 2025.05.10 @ 12:15:14 Player: Darcyisverycute Result: Destroyed by as-09008 with Assembled F-torch Performance ------------- Evolutions (0) 0 Regions Visited (2) 400 Robots Destroyed (20) 100 Value Destroyed (197) 197 Prototype IDs (2) 40 Alien Tech Used (0) 0 Bonus (0) 0 TOTAL SCORE: 737 Bonus ------- None Cogmind --------- Core Integrity 0/250 Matter 300/300 Energy 99/100 System Corruption 0% Temperature Cool (20) Movement Core (50) Location -10/Mines Parts ------- > --- POWER (1) -------- (None) > --- PROPULSION (2) --- (None) > --- UTILITY (2) ------ (None) > --- WEAPON (2) ------- (None) > --- INVENTORY (5) ---- Ion Engine Light Ion Engine Small Storage Unit Large Battery (200) Grenade Launcher Peak State ------------ > --- POWER ------------ Light Ion Engine > --- PROPULSION ------- Light Treads Light Treads > --- UTILITY ---------- High-capacity Storage Unit Improved Terrain Scanner > --- WEAPON ----------- Medium Laser Assault Rifle > --- INVENTORY -------- Ion Engine Small Storage Unit Large Battery Large Matter Pod Visual Processing Unit EM Pulse Gun Light Assault Rifle Rocket Launcher [Rating: 10] Favorites ----------- Power Light Ion Engine Engine Light Ion Engine Propulsion Light Treads Treads Light Treads Wheel Wheel Utility Improved Terrain Scanner Device Improved Terrain Scanner Storage High-capacity Storage Unit Weapon Assault Rifle Energy Gun Medium Laser Ballistic Gun Assault Rifle Build | -11 -10 -10 ------- Run | Yrd Mat Min Slots Evolved . | . . . Power . | . . . Propulsion . | . . . Utility . | . . . Weapon . | . . . Parts Attached 10 | 7 1 2 Power 1 | 1 . . Engine 1 | 1 . . Core . | . . . Reactor . | . . . Propulsion 3 | 2 . 1 Treads 2 | 2 . . Leg . | . . . Wheel 1 | . . 1 Hover . | . . . Flight . | . . . Utility 3 | 2 1 . Device 1 | 1 . . Storage 2 | 1 1 . Processor . | . . . Hackware . | . . . Protection . | . . . Artifact . | . . . Weapon 3 | 2 . 1 Energy Gun 1 | 1 . . Energy Cannon . | . . . Ballistic Gun 2 | 1 . 1 Ballistic Cannon . | . . . Launcher . | . . . Special Weapon . | . . . Impact Weapon . | . . . Slashing Weapon . | . . . Piercing Weapon . | . . . Special Melee Weapon . | . . . Unidentified Prototypes . | . . . Parts Lost 7 | . . 7 Power 1 | . . 1 Propulsion 3 | . . 3 Utility 1 | . . 1 Weapon 2 | . . 2 Highest Loss Streak 7 | . . 7 To Critical Strikes . | . . . Average Backups 8 | 1 4 11 Power 1 | . 1 1 Propulsion . | . . . Utility 3 | . 1 4 Weapon 3 | . 1 5 Tool/Special . | . . . Unused Backups 13 | . . 13 Power 2 | . . 2 Propulsion . | . . . Utility 4 | . . 4 Weapon 7 | . . 7 Tool/Special . | . . . Average Slot Usage (%) 99 | . 100 98 Engine 13 | . 14 13 Treads 27 | . 28 27 Device 13 | . 14 13 Storage 14 | . 14 14 Energy Gun 13 | . 14 13 Ballistic Gun 14 | . 14 14 Peak Build Rating 10 | 9 9 10 Average Rating 9 | 7 9 9 On Entrance 6 | . 9 9 Naked Turns 2 | . . 2 Heaviest Build 48 | 13 48 48 Greatest Support 40 | 40 40 40 Greatest Overweight (x) 4 | . 1 4 Average Overweight (x) . | . . 1 Largest Inventory Capacity 20 | 8 20 20 Average Capacity 15 | 7 10 19 Most Carried 16 | 2 7 16 Average Carried 8 | 1 4 11 Final Capacity 20 | 8 20 5 Final Carried 7 | 2 7 5 Class Distribution -------------------- 100% | Mutant Dominant Class ---------------- Mutant | -10/Materials Mutant | -10/Mines Resources | -11 -10 -10 ----------- Run | Yrd Mat Min Matter Collected 572 | 357 134 81 Remotely . | . . . Salvage Created 430 | 234 168 28 Parts 33 | 22 11 . Haulers Intercepted . | . . . Recyclers Shooed 2 | 2 . . Parts Field Recycled . | . . . Retrieved Matter . | . . . Parts Self-Destructed . | . . . Prevented . | . . . Kills | -11 -10 -10 ------- Run | Yrd Mat Min Combat Hostiles Destroyed 7 | . 7 . Guns 7 | . 7 . Classes Destroyed 7 | 3 3 1 Worker 3 | 2 . 1 Builder 1 | . . 1 Tunneler 7 | 7 . . Recycler 1 | 1 . . Watcher 1 | . 1 . Swarmer 5 | . 5 . Grunt 2 | . 2 . Best Kill Streak 7 | 7 5 1 Combat Bots Only 5 | . 5 . Max Kills in Single Turn 1 | 1 1 1 Gunslinging . | . . . Exploded . | . . . Melee . | . . . Uniques/NPCs Destroyed . | . . . Combat | -11 -10 -10 -------- Run | Yrd Mat Min Hostile Shots Fired 56 | . 32 24 Missed 12 | . 11 1 Hits 44 | . 21 23 Melee 4 | . . 4 Projectile 40 | . 21 19 AOE 11 | . . 11 Critical Strikes 1 | . 1 . Damage Taken 879 | . 169 710 Core 254 | . 34 220 Absorbed by Shields . | . . . Core Remaining (%) 100 | 100 . . Volleys Fired 52 | 29 19 4 Largest 2 | 2 2 2 Hottest 70 | 70 70 70 Shots Fired 104 | 58 38 8 Gun 104 | 58 38 8 Cannon . | . . . Launcher . | . . . Special . | . . . Kinetic 52 | 29 19 4 Thermal 52 | 29 19 4 Explosive . | . . . Electromagnetic . | . . . Robot Hit Streak 9 | 9 6 5 Robot Miss Streak 3 | 3 3 1 Penetration Max . | . . . Secondary Targets 1 | . 1 . Max Gunslinging Chain 1 | . 1 . Shots Hit Robots 63 | 36 22 5 Core Hits 24 | 11 10 3 Critical Kills . | . . . Critical Parts Destroyed 1 | 1 . . Critical Strikes 5 | 2 2 1 Burn 4 | 1 2 1 Destroy 1 | 1 . . Melee Attacks . | . . . Impact . | . . . Slashing . | . . . Piercing . | . . . Sneak Attacks . | . . . Combat Hostiles . | . . . Follow-up Attacks . | . . . Damage Inflicted 781 | 444 282 55 Guns 781 | 444 282 55 Cannons . | . . . Explosions . | . . . Melee . | . . . Ramming . | . . . Kinetic 393 | 219 168 6 Thermal 388 | 225 114 49 Explosive . | . . . Electromagnetic . | . . . Impact . | . . . Slashing . | . . . Piercing . | . . . Highest Corruption . | . . . Average Corruption . | . . . Corruption Purged . | . . . Corruption Blocked . | . . . Overload Shots . | . . . Overflow Damage . | . . . Projectiles . | . . . Explosions . | . . . Melee . | . . . Knockbacks . | . . . Impact . | . . . Kinetic . | . . . Secondary . | . . . Self-Inflicted Damage . | . . . Shots . | . . . Rammed . | . . . Targets Rammed . | . . . Kicked . | . . . Crushed . | . . . Highest Temperature 135 | 135 63 40 Average Temperature 33 | 43 20 13 Received Heat Transfer 100 | . . 100 Siege Activations . | . . . Martial Activations . | . . . Shielding Activations . | . . . Robots Disrupted . | . . . Combat Hostiles . | . . . Robots Corrupted . | . . . Combat Hostiles . | . . . Parts Fried . | . . . Impact Corruptions . | . . . Robots Melted . | . . . Combat Hostiles . | . . . Parts Melted 5 | 2 2 1 Heat Transferred 1443 | 740 481 222 Parts Sabotaged . | . . . Parts Stolen . | . . . Parts Stripped . | . . . Power Chain Reactions . | . . . Alert | -11 -10 -10 ------- Run | Yrd Mat Min Maximum Alert Level . | . . . Low Security (%) 100 | 100 100 100 Level 1 . | . . . Level 2 . | . . . Level 3 . | . . . Level 4 . | . . . Level 5 . | . . . High Security . | . . . Max Security . | . . . Peak Influence 115 | 15 115 30 Initial 30 | . . 30 Average 13 | 2 59 1 Influence Increases 277 | 50 217 10 Destroy 0b10 Robot/C 140 | . 140 . Destroy 0b10 Robot/NC 65 | 50 5 10 Destroy Leader 22 | . 22 . Successful Hack 34 | . 34 . Destroy Structure 1 | . 1 . Lose Combat Pursuer 15 | . 15 . Influence Decreases 277 | 50 140 87 Entered New Map 47 | . . 47 Time Decay 230 | 50 140 40 Squads Dispatched 1 | . 1 . Investigation . | . . . Extermination . | . . . Reinforcement 1 | . 1 . Assault . | . . . Garrison . | . . . Intercept . | . . . Searches Triggered . | . . . Construction Impeded . | . . . Haulers Reinforced . | . . . Active Scanning Responses . | . . . Cargo Convoy Interrupts . | . . . Stealth | -11 -10 -10 --------- Run | Yrd Mat Min Distress Signals 1 | . 1 . Communications Jammed . | . . . Distress Signals . | . . . Times Spotted 36 | . 13 23 Peak Tracking Total 17 | . 6 17 Tactical Retreats 1 | . 1 . Traps | -11 -10 -10 ------- Run | Yrd Mat Min Traps Triggered . | . . . Indirectly . | . . . Trap Hack Attempts . | . . . Triggered . | . . . Disarmed . | . . . Reprogrammed . | . . . Reused . | . . . Traps Extracted . | . . . Installed . | . . . Triggered . | . . . Machines | -11 -10 -10 ---------- Run | Yrd Mat Min Machines Disabled . | . . . Max in Single Turn . | . . . Machines Repaired . | . . . Machines Dismantled . | . . . Machines Sabotaged . | . . . Overloaded Fab Kills . | . . . Hacking | -11 -10 -10 --------- Run | Yrd Mat Min Machines Accessed 2 | . 2 . Terminals 2 | . 2 . Fabricators . | . . . Repair Stations . | . . . Recycling Units . | . . . Scanalyzers . | . . . Garrison Access . | . . . Total Hacks 13 | . 13 . Successful 9 | . 9 . Failed 4 | . 4 . Catastrophic 1 | . 1 . Database Lockouts . | . . . Manual 6 | . 6 . Terminals 13 | . 13 . Fabricators . | . . . Repair Stations . | . . . Recycling Units . | . . . Scanalyzers . | . . . Garrison Access . | . . . Terminal Hacks 9 | . 9 . Part Schematic 2 | . 2 . Prototype ID Bank 1 | . 1 . Emergency Access Points 1 | . 1 . Terminal Index 1 | . 1 . Locate Traps 1 | . 1 . Security Status 1 | . 1 . Hauler Manifests 1 | . 1 . Zone Layout 1 | . 1 . Fabricator Hacks . | . . . Repair Station Hacks . | . . . Recycling Unit Hacks . | . . . Scanalyzer . | . . . Garrison Access Hacks . | . . . Unauthorized Hacks . | . . . Terminals . | . . . Fabricators . | . . . Repair Stations . | . . . Recycling Units . | . . . Scanalyzers . | . . . Garrison Access . | . . . Data Cores Recovered . | . . . Used . | . . . Hacking Detections 2 | . 2 . Full Trace Events 1 | . 1 . Feedback Events . | . . . Feedback Blocked . | . . . Robot Schematics Acquired . | . . . Robots Built . | . . . Authchips . | . . . Time . | . . . Total Robot Build Rating . | . . . Part Schematics Acquired 2 | . 2 . Parts Built . | . . . Authchips . | . . . Time . | . . . Total Part Build Rating . | . . . Parts Repaired . | . . . Time . | . . . Parts Recycled . | . . . Recycled Matter . | . . . Retrieved Matter . | . . . Retrieved Components . | . . . Parts Scanalyzed . | . . . Part Schematics Acquired . | . . . Parts Damaged . | . . . Bothacking | -11 -10 -10 ------------ Run | Yrd Mat Min Used RIF Installer . | . . . Robots Hacked . | . . . Non-combat . | . . . Combat . | . . . Robot Hacks Applied . | . . . Relay Couplers Released . | . . . Fabnet Peak Effective % . | . . . Robots Rewired . | . . . Allies Hacked . | . . . Hacks Repelled . | . . . Allies | -11 -10 -10 -------- Run | Yrd Mat Min Total Allies . | . . . Largest Group . | . . . Highest-Rated Group . | . . . Highest-Rated Ally . | . . . Total Orders . | . . . Ally Attacks . | . . . Total Damage . | . . . Kills . | . . . Allies Corrupted . | . . . Allies Melted . | . . . Intel | -11 -10 -10 ------- Run | Yrd Mat Min Active Infowar (turns) 1458 | 179 315 964 Terrain 1458 | 179 315 964 Robot Analysis Total . | . . . Derelict Logs Recovered 2 | . . 2 Drone Launches . | . . . Drone Recoveries . | . . . Exploration | -11 -10 -10 ------------- Run | Yrd Mat Min Turns Passed 1573 | 280 315 978 Spaces Moved 657 | 112 142 403 Core 6 | 2 . 4 Treads 643 | 110 142 391 Legs . | . . . Wheels 8 | . . 8 Hover . | . . . Flight . | . . . Fastest Speed 50 | 50 160 50 Average Speed 209 | 158 172 236 Slowest Speed 320 | 160 240 320 Overloaded Moves . | . . . Propulsion Burnouts . | . . . Robots Hopped . | . . . Potential Cave-ins . | . . . Cave-ins Triggered . | . . . Exploration Rate (%) 44 | 6 41 87 Regions Visited 2 Branch Regions 1 Pre-discovered Areas . | . . . Known Exits Taken . | . . . Unknown Exits Taken 2 | 1 1 . Scrap Searched 1 | . . 1 Spaces Dug . | . . . Terrain Destroyed . | . . . Melee . | . . . Projectile . | . . . AOE . | . . . Terrain Rammed . | . . . Walls Destroyed . | . . . Machines Disabled . | . . . Actions | -11 -10 -10 --------- Run | Yrd Mat Min Total 747 | 154 174 419 Wait 15 | 5 9 1 Move 655 | 111 141 403 Hop . | . . . Pick Up 15 | 2 4 9 Fast Attach 7 | 7 . . Attach 2 | . . 2 Detach . | . . . Swap 1 | . 1 . Drop . | . . . Fire 52 | 29 19 4 Melee . | . . . Ram . | . . . Kick . | . . . Crush . | . . . Escape Stasis . | . . . Rewire . | . . . Trap . | . . . Miscellaneous . | . . . Route ------- -11/Scrapyard -10/Materials -10/Mines (discovered 2 exits: *Mat x2) History --------- Turn | Location | Event 18 | -11/Scrapyard | Discovered new exit (range 15) 281 | -11/Scrapyard | Entered Materials 301 | -10/Materials | Build established: Mutant 570 | -10/Materials | Discovered new exit (range 10) 596 | -10/Materials | Entered Mines 603 | -10/Mines | Received a Rocket Launcher from a helpful Derelict 665 | -10/Mines | Identified exit to Materials 768 | -10/Mines | Learned 2 Materials zone layouts 785 | -10/Mines | Discovered exit to Materials (range 9) 1103 | -10/Mines | YI-UF0 nonchalantly dropped a Grenade Launcher on the ground 1516 | -10/Mines | Assembled infested the area 1560 | -10/Mines | Core integrity fell below 50% 1572 | -10/Mines | Released all parts (2) 1573 | -10/Mines | Core integrity fell below 20% 1574 | -10/Mines | Destroyed by as-09008 with Assembled F-torch Last Messages --------------- 01555_ as-16815 destroyed. 01558_ The unstable cave ceiling collapses. 01559_ as-35426 destroyed. 01560_ Imp. Terrain Scanner destroyed. 01561_ as-76925 destroyed. 01562_ The unstable cave ceiling collapses. 01563_ as-34892 destroyed. 01563_ as-45518 destroyed. 01563_ as-23766 destroyed. 01563_ as-02912 destroyed. 01563_ K-01 Serf destroyed. 01565_ The unstable cave ceiling collapses. 01566_ D-53 Grenadier suffers critical hit (Destroy). 01568_ Lgt. Treads destroyed. 01569_ The unstable cave ceiling collapses. 01571_ Acquired 4 matter. 01571_ Wheel destroyed. 01572_ Released Hcp. Storage Unit. 01572_ Released Lgt. Assault Rifle. Map ----- +----------------------------------------------------+ | ?## ###?????##### ##?????## ##??? | | ## ##??#??# ##?#?## #??# | | ?# ##???## ### ##### #??? | | ?## ###??????## ### ##?#? | | ?### ###?????#### ## ##???? | | #?### ##???#????# ### ###????? | | ###?# ##??????## ##### ##??????? | | ##?# # ##??## #??## ####???#?? | | #??## #### #???####??#?????? | | ##???## #### ### ######??????#?#?# | | #?????## #?????# ###????????? | | #??????## ##?# #### ###???#??? | | ########## #?##### #### ##?????? | | #?????### ## # # #?????? | | ##??#??#?# ## = ##????# | | #############???#????# ## %* ####?? | | ??##????#????????????# # #?? | | ?#????????#?????????? # # #?? | | ????#???????? ??????? ## ## # #?? | | #???? ???????????????#### [%a # #?? | | #????????? ?????????????##![[ #?? | | #?????? ????????????????##[a%[ # #?? | | #??#????????????????????# ]!aa#### ###?? | | ????#????????????#??????## !] #???# ###???? | | ????????????????????????## a##??? #?????? | | #???????? ???